Workbook

Sheet RENDITE VITALIZIE
J3: CALCOLO RENDITA VITALIZIA
C6: ETA' AL MOMENTO DELLA RISCOSSIONE MINIMO 50 | H6: 68
C8: VALORE MONTANTE DA DESTINARE ALLA RENDITA | H8: 170267
C10: SESSO | H10: F
A13: NOTA: Inserendo i dati nelle caselle verdi (età al momento delle riscossione, montante destinato alla
A14: rendita e sesso) nel grafico compariranno i valori annuali lordi percepibili dall'assicurato.

Sheet CALCOLI (hidden)
Y2: RENDITA REVERSIBILE SU ASSICURATO DI PARI ETA' E SESSO DIVERSO
Z3: Età | AA3: Maschi | AB3: Femmine
Z5: 50 | AA5: 0.02274 | AB5: 0.02274
Z6: =1+Z5 -> 51 | AA6: 0.02327 | AB6: 0.02327
Z7: =1+Z6 -> 52 | AA7: 0.02383 | AB7: 0.02383
Z8: 53 | AA8: 0.02441 | AB8: 0.02441
Z9: 54 | AA9: 0.02501 | AB9: 0.02501
Z10: 55 | AA10: 0.02565 | AB10: 0.02565
Z11: 56 | AA11: 0.02632 | AB11: 0.02632
E12: RENDITA VITALIZIA IMMEDIATA A PREMIO UNICO | J12: RENDITA VITALIZIA CERTA 5 ANNI | N12: RENDITA VITALIZIA CERTA 10 ANNI | R12: RENDITA CONTROASSICURATA | V12: RENDITA CON RADDOPPIO TLC | Z12: 57 | AA12: 0.02703 | AB12: 0.02703
Z13: 58 | AA13: 0.02778 | AB13: 0.02778
F14: Età | G14: Maschi | H14: Femmine | J14: Età | K14: Maschi | L14: Femmine | N14: Età | O14: Maschi | P14: Femmine | R14: Età | S14: Maschi | T14: Femmine | V14: Età | W14: Maschi | X14: Femmine | Z14: 59 | AA14: 0.02856 | AB14: 0.02856
Z15: 60 | AA15: 0.02939 | AB15: 0.02939
F16: 50 | G16: 0.02761 | H16: 0.02487 | J16: 50 | K16: 0.02759 | L16: 0.02486 | N16: 50 | O16: 0.02754 | P16: 0.02483 | R16: 50 | S16: 0.0268 | T16: 0.02524 | V16: 50 | W16: 0.02628 | X16: 0.02317 | Z16: 61 | AA16: 0.03027 | AB16: 0.03027
F17: =1+F16 -> 51 | G17: 0.02836 | H17: 0.02549 | J17: =1+J16 -> 51 | K17: 0.02385 | L17: 0.02547 | N17: =1+N16 -> 51 | O17: 0.02829 | P17: 0.02544 | R17: =1+R16 -> 51 | S17: 0.02731 | T17: 0.02571 | V17: =1+V16 -> 51 | W17: 0.02697 | X17: 0.02371 | Z17: 62 | AA17: 0.0312 | AB17: 0.0312
F18: =1+F17 -> 52 | G18: 0.02916 | H18: 0.02613 | J18: =1+J17 -> 52 | K18: 0.02914 | L18: 0.02612 | N18: =1+N17 -> 52 | O18: 0.02907 | P18: 0.02608 | R18: =1+R17 -> 52 | S18: 0.02783 | T18: 0.02618 | V18: =1+V17 -> 52 | W18: 0.02769 | X18: 0.02426 | Z18: 63 | AA18: 0.03218 | AB18: 0.03218
F19: 53 | G19: 0.03 | H19: 0.02681 | J19: 53 | K19: 0.02998 | L19: 0.02679 | N19: 53 | O19: 0.0299 | P19: 0.02675 | R19: 53 | S19: 0.02837 | T19: 0.02667 | V19: 53 | W19: 0.02845 | X19: 0.02485 | Z19: 64 | AA19: 0.03323 | AB19: 0.03323
F20: 54 | G20: 0.03089 | H20: 0.02752 | J20: 54 | K20: 0.03086 | L20: 0.0275 | N20: 54 | O20: 0.03077 | P20: 0.02746 | R20: 54 | S20: 0.02893 | T20: 0.02719 | V20: 54 | W20: 0.02924 | X20: 0.02546 | Z20: 65 | AA20: 0.03434 | AB20: 0.03434
F21: 55 | G21: 0.03183 | H21: 0.02827 | J21: 55 | K21: 0.0318 | L21: 0.02825 | N21: 55 | O21: 0.03168 | P21: 0.0282 | R21: 55 | S21: 0.02953 | T21: 0.02772 | V21: 55 | W21: 0.03008 | X21: 0.0261 | Z21: 66 | AA21: 0.03552 | AB21: 0.03552
F22: 56 | G22: 0.03282 | H22: 0.02906 | J22: 56 | K22: 0.03278 | L22: 0.02904 | N22: 56 | O22: 0.03264 | P22: 0.02898 | R22: 56 | S22: 0.03013 | T22: 0.02827 | V22: 56 | W22: 0.03097 | X22: 0.02677 | Z22: 67 | AA22: 0.03677 | AB22: 0.03677
F23: 57 | G23: 0.03387 | H23: 0.02989 | J23: 57 | K23: 0.03382 | L23: 0.02987 | N23: 57 | O23: 0.03366 | P23: 0.0298 | R23: 57 | S23: 0.03077 | T23: 0.02885 | V23: 57 | W23: 0.0319 | X23: 0.02748 | Z23: 68 | AA23: 0.03812 | AB23: 0.03812
F24: 58 | G24: 0.03498 | H24: 0.03077 | J24: 58 | K24: 0.03493 | L24: 0.03075 | N24: 58 | O24: 0.03473 | P24: 0.03066 | R24: 58 | S24: 0.03143 | T24: 0.02945 | V24: 58 | W24: 0.03289 | X24: 0.02823 | Z24: 69 | AA24: 0.03955 | AB24: 0.03955
F25: 59 | G25: 0.03617 | H25: 0.03171 | J25: 59 | K25: 0.0361 | L25: 0.03168 | N25: 59 | O25: 0.03587 | P25: 0.03158 | R25: 59 | S25: 0.03212 | T25: 0.03007 | V25: 59 | W25: 0.03394 | X25: 0.02901 | Z25: 70 | AA25: 0.04109 | AB25: 0.04109
F26: 60 | G26: 0.03743 | H26: 0.0327 | J26: 60 | K26: 0.03735 | L26: 0.03267 | N26: 60 | O26: 0.03707 | P26: 0.03255 | R26: 60 | S26: 0.03283 | T26: 0.03072 | V26: 60 | W26: 0.03505 | X26: 0.02984
F27: 61 | G27: 0.03877 | H27: 0.03375 | J27: 61 | K27: 0.03868 | L27: 0.03371 | N27: 61 | O27: 0.03833 | P27: 0.03357 | R27: 61 | S27: 0.03359 | T27: 0.03141 | V27: 61 | W27: 0.03623 | X27: 0.03072 | AP27: 100000 | AQ27: =+AP27*4% -> 4000 | AR27: =+AP27*4% -> 4000
F28: 62 | G28: 0.04019 | H28: 0.03487 | J28: 62 | K28: 0.04008 | L28: 0.03482 | N28: 62 | O28: 0.03966 | P28: 0.03465 | R28: 62 | S28: 0.03437 | T28: 0.03212 | V28: 62 | W28: 0.03748 | X28: 0.03165 | AP28: 200000 | AQ28: =+AP28*4% -> 8000 | AR28: =+AP28*5.5% -> 11000
F29: 63 | G29: 0.04171 | H29: 0.03605 | J29: 63 | K29: 0.04157 | L29: 0.036 | N29: 63 | O29: 0.04107 | P29: 0.0358 | R29: 63 | S29: 0.03519 | T29: 0.03285 | V29: 63 | W29: 0.0388 | X29: 0.03263
F30: 64 | G30: 0.04332 | H30: 0.03732 | J30: 64 | K30: 0.04316 | L30: 0.03725 | N30: 64 | O30: 0.04255 | P30: 0.03701 | R30: 64 | S30: 0.03605 | T30: 0.03363 | V30: 64 | W30: 0.0402 | X30: 0.03366
F31: 65 | G31: 0.04505 | H31: 0.03866 | J31: 65 | K31: 0.04485 | L31: 0.03858 | N31: 65 | O31: 0.04412 | P31: 0.0383 | R31: 65 | S31: 0.03695 | T31: 0.03444 | V31: 65 | W31: 0.04168 | X31: 0.03476
F32: 66 | G32: 0.0469 | H32: 0.04009 | J32: 66 | K32: 0.04666 | L32: 0.04 | N32: 66 | O32: 0.04577 | P32: 0.03966 | R32: 66 | S32: 0.03788 | T32: 0.03528 | V32: 66 | W32: 0.04327 | X32: 0.03592
F33: 67 | G33: 0.04887 | H33: 0.04163 | J33: 67 | K33: 0.04858 | L33: 0.04152 | N33: 67 | O33: 0.04752 | P33: 0.04111 | R33: 67 | S33: 0.03888 | T33: 0.03618 | V33: 67 | W33: 0.04495 | X33: 0.03716
F34: 68 | G34: 0.05099 | H34: 0.04327 | J34: 68 | K34: 0.05063 | L34: 0.04314 | N34: 68 | O34: 0.04936 | P34: 0.04266 | R34: 68 | S34: 0.03991 | T34: 0.03713 | V34: 68 | W34: 0.04674 | X34: 0.03848
F35: 69 | G35: 0.05326 | H35: 0.04504 | J35: 69 | K35: 0.05282 | L35: 0.04488 | N35: 69 | O35: 0.05129 | P35: 0.0443 | R35: 69 | S35: 0.04099 | T35: 0.03809 | V35: 69 | W35: 0.04865 | X35: 0.03988
F36: 70 | G36: 0.0557 | H36: 0.04694 | J36: 70 | K36: 0.05517 | L36: 0.04674 | N36: 70 | O36: 0.05331 | P36: 0.04604 | R36: 70 | S36: 0.04215 | T36: 0.03912 | V36: 70 | W36: 0.0507 | X36: 0.04138
A41: 1
A42: =1+A41 -> 2
A43: =1+A42 -> 3
A44: 4
A45: 5
A46: 6
A47: 7
A48: 8
A49: 9
A50: 10
A51: 11
A52: 12
A53: 13
A54: 14
A55: 15
A56: 16
A57: 17
A58: 18
A59: 19
A60: 20
A61: 21
A62: 22
A63: 23
A64: 24
A65: 25
A66: 26
A67: 27
A68: 28
A69: 29
A70: 30
A71: 31
A72: 32
A73: 33
A74: 34
A75: 35
A76: 36
A77: 37
A78: 38
A79: 39
A80: 40
A81: 41
A82: 42
A83: 43
A84: 44
A85: 45
A86: 46
A87: 47
A88: 48
A89: 49
A90: 50
A91: 51
A92: 52
A93: 53
A94: 54
A95: 55
A96: 56
A97: 57
A98: 58
A99: 59
A100: 60
A101: 61
A102: 62
A103: 63
A104: 64
A105: 65
A106: 66
A107: =1+A106 -> 67
A108: 68
A109: 69
A110: 70
S112: =SUM(S41:S111) -> 0 | U112: =SUM(U42:U111) -> 0 | V112: 0 | W112: =SUM(W42:W111) -> 0 | Y112: =SUM(Y42:Y111) -> 0 | Z112: =SUM(Z42:Z111) -> 0
V113: =+V112+U112 -> 0 | Z113: =+V113+W112 -> 0

Sheet CALCOLO PENSIONE (hidden)
D3: VECCHIO ISCR | E3: =+'RENDITE VITALIZIE'!H12 -> 0
D4: SESSO | E4: =+'RENDITE VITALIZIE'!H10 -> F | F4: =IF($E$4="M",VLOOKUP($E$5,$D$10:$E$99,2),VLOOKUP($E$5,$G$10:$H$97,2)) -> 1 | P4: =IF(E3="SI",122,100) -> 100
D5: ETA' | E5: =+'RENDITE VITALIZIE'!H6 -> 68 | K5: =+E7*L5 -> 7668.82568 | L5: =IF($E$4="M",VLOOKUP($E$6,CALCOLI!$F$16:$H$36,2),VLOOKUP($E$6,CALCOLI!$F$16:$H$36,3)) -> 0.04504 | M5: IMMEDIATA | P5: =+K5*P4% -> 7668.82568
D6: ETA' CORRETTA | E6: =+E5+F4 -> 69
D7: MONTANTE | E7: =+'RENDITE VITALIZIE'!H8 -> 170267 | K7: =+E7*L7 -> 7641.58296 | L7: =IF($E$4="M",VLOOKUP($E$6,CALCOLI!$J$16:$L$36,2),VLOOKUP($E$6,CALCOLI!$J$16:$L$36,3)) -> 0.04488 | M7: CERTA 5 ANNI | P7: =+K7 -> 7641.58296
D9: MASCHI | G9: femmine | K9: =+E7*L9 -> 7542.8281 | L9: =IF($E$4="M",VLOOKUP($E$6,CALCOLI!$N$16:$P$36,2),VLOOKUP($E$6,CALCOLI!$N$16:$P$36,3)) -> 0.0443 | M9: CERTA 10 ANNI | P9: =+K9 -> 7542.8281
D10: 0 | E10: -2 | G10: 0 | H10: -2
D11: =1+D10 -> 1 | E11: -2 | G11: =1+G10 -> 1 | H11: -2 | K11: =+E7*L11 -> 6485.47003 | L11: =IF($E$4="M",VLOOKUP($E$6,CALCOLI!$R$16:$T$36,2),VLOOKUP($E$6,CALCOLI!$R$16:$T$36,3)) -> 0.03809 | M11: CONTRASS TT 0,50% | P11: =+K11 -> 6485.47003
D12: =1+D11 -> 2 | E12: -2 | G12: =1+G11 -> 2 | H12: -2
D13: 3 | E13: -2 | G13: 3 | H13: -2 | K13: =+E7*L13 -> 6734.05985 | L13: =IF($E$4="M",VLOOKUP($E$6,CALCOLI!$Z$5:$AB$25,2),VLOOKUP($E$6,CALCOLI!$Z$5:$AB$25,3)) -> 0.03955 | M13: REVERSIBILE | P13: =+K13 -> 6734.05985
D14: 4 | E14: -2 | G14: 4 | H14: -2
D15: 5 | E15: -2 | G15: 5 | H15: -2
D16: 6 | E16: -2 | G16: 6 | H16: -2
D17: 7 | E17: -2 | G17: 7 | H17: -2
D18: 8 | E18: -2 | G18: 8 | H18: -2
D19: 9 | E19: -2 | G19: 9 | H19: -2
D20: 10 | E20: -2 | G20: 10 | H20: -2
D21: 11 | E21: -2 | G21: 11 | H21: -2
D22: 12 | E22: -2 | G22: 12 | H22: -2
D23: 13 | E23: -2 | G23: 13 | H23: -2
D24: 14 | E24: -2 | G24: 14 | H24: -2
D25: 15 | E25: -2 | G25: 15 | H25: -2
D26: 16 | E26: -2 | G26: 16 | H26: -2
D27: 17 | E27: -2 | G27: 17 | H27: -2
D28: 18 | E28: -2 | G28: 18 | H28: -2
D29: 19 | E29: -2 | G29: 19 | H29: -2
D30: 20 | E30: -2 | G30: 20 | H30: -2
D31: 21 | E31: -2 | G31: 21 | H31: -2
D32: 22 | E32: -2 | G32: 22 | H32: -2
D33: 23 | E33: -2 | G33: 23 | H33: -2
D34: 24 | E34: -2 | G34: 24 | H34: -2
D35: 25 | E35: -2 | G35: 25 | H35: -2
D36: 26 | E36: -2 | G36: 26 | H36: -2
D37: 27 | E37: -2 | G37: 27 | H37: -2
D38: 28 | E38: -2 | G38: 28 | H38: -2
D39: 29 | E39: -2 | G39: 29 | H39: -2
D40: 30 | E40: -2 | G40: 30 | H40: -2
D41: 31 | E41: -2 | G41: 31 | H41: -2
D42: 32 | E42: -2 | G42: 32 | H42: -2
D43: 33 | E43: -2 | G43: 33 | H43: -2
D44: 34 | E44: -2 | G44: 34 | H44: -2
D45: 35 | E45: -2 | G45: 35 | H45: -2
D46: 36 | E46: -2 | G46: 36 | H46: -2
D47: 37 | E47: -2 | G47: 37 | H47: -2
D48: 38 | E48: -2 | G48: 38 | H48: -2
D49: 39 | E49: -2 | G49: 39 | H49: -2
D50: 40 | E50: -2 | G50: 40 | H50: -2
D51: 41 | E51: -2 | G51: 41 | H51: -2
D52: 42 | E52: -2 | G52: 42 | H52: -2
D53: 43 | E53: -2 | G53: 43 | H53: -2
D54: 44 | E54: -2 | G54: 44 | H54: -2
D55: 45 | E55: -2 | G55: 45 | H55: -2
D56: 46 | E56: -2 | G56: 46 | H56: -2
D57: 47 | E57: -1 | G57: 47 | H57: -1
D58: 48 | E58: -1 | G58: 48 | H58: -1
D59: 49 | E59: -1 | G59: 49 | H59: -1
D60: 50 | E60: -1 | G60: 50 | H60: -1
D61: 51 | E61: -1 | G61: 51 | H61: -1
D62: 52 | E62: -1 | G62: 52 | H62: -1
D63: 53 | E63: -1 | G63: 53 | H63: -1
D64: 54 | E64: -1 | G64: 54 | H64: -1
D65: 55 | E65: -1 | G65: 55 | H65: 0
D66: 56 | E66: -1 | G66: 56 | H66: 0
D67: 57 | E67: 0 | G67: 57 | H67: 0
D68: 58 | E68: 0 | G68: 58 | H68: 0
D69: 59 | E69: 0 | G69: 59 | H69: 0
D70: 60 | E70: 0 | G70: 60 | H70: 0
D71: 61 | E71: 0 | G71: 61 | H71: 0
D72: 62 | E72: 0 | G72: 62 | H72: 0
D73: 63 | E73: 0 | G73: 63 | H73: 0
D74: 64 | E74: 0 | G74: 64 | H74: 0
D75: 65 | E75: 0 | G75: 65 | H75: 0
D76: =1+D75 -> 66 | E76: 0 | G76: =1+G75 -> 66 | H76: 0
D77: 67 | E77: 0 | G77: 67 | H77: 0
D78: 68 | E78: 0 | G78: 68 | H78: 1
D79: 69 | E79: 0 | G79: 69 | H79: 1
D80: 70 | E80: 1 | G80: 70 | H80: 1
D81: 71 | E81: 1 | G81: 71 | H81: 1
D82: 72 | E82: 1 | G82: 72 | H82: 1
D83: 73 | E83: 1 | G83: 73 | H83: 1
D84: 74 | E84: 1 | G84: 74 | H84: 1
D85: 75 | E85: 1 | G85: 75 | H85: 1
D86: 76 | E86: 1 | G86: 76 | H86: 1
D87: 77 | E87: 1 | G87: 77 | H87: 2
D88: 78 | E88: 1 | G88: 78 | H88: 2
D89: 79 | E89: 2 | G89: 79 | H89: 2
D90: 80 | E90: 2 | G90: 80 | H90: 2
D91: 81 | E91: 2 | G91: 81 | H91: 2
D92: 82 | E92: 2 | G92: 82 | H92: 2
D93: 83 | E93: 2 | G93: 83 | H93: 2
D94: 84 | E94: 2 | G94: 84 | H94: 2
D95: 85 | E95: 2 | G95: 85 | H95: 2
D96: 86 | E96: 2 | G96: 86 | H96: 2
D97: 87 | E97: 2 | G97: 87 | H97: 2
D98: 88 | E98: 2
D99: 89 | E99: 2
